bitfinex/quotes_ETHUSD_20250216
["timestamp","ask_amount","ask_price","bid_price","bid_amount"]
[1739739835955,1.1639,2672.8,2672.5,3.74173]
[1739739836291,0.7894,2672.8,2672.5,7.48346]
[1739739836450,0.7894,2672.8,2672.6,3.74157]
[1739739838494,0.7894,2672.8,2672.4,3.74186]
[1739739838665,0.7894,2672.8,2672.4,3.74185]
[1739739838871,8.27239,2672.8,2672.3,3.0]
[1739739839070,4.53087,2672.8,2672.3,3.0]
[1739739839501,4.53087,2672.8,2672.3,6.74205]
[1739739839673,0.7894,2672.7,2672.0,3.0]
[1739739839855,0.7894,2672.6,2672.3,3.0]
[1739739840580,0.7894,2672.6,2672.4,3.74194]
[1739739841101,0.7894,2672.6,2672.3,3.0]
[1739739841459,0.7894,2672.6,2672.3,6.74205]
[1739739841855,0.7894,2672.6,2672.3,3.0]
[1739739842499,0.7894,2672.6,2672.3,6.74199]
[1739739842699,0.7894,2672.6,2672.4,3.74191]
[1739739842993,0.7894,2672.6,2672.0,3.0]
[1739739843201,0.7894,2672.6,2672.3,3.0]
[1739739844099,0.7894,2672.6,2671.7,0.0576]
[1739739844401,0.8269,2672.4,2671.7,0.0576]
[1739739844572,0.8269,2672.4,2672.0,3.74251]
[1739739844915,0.8269,2672.4,2672.2,3.74214]
[1739739845266,0.8269,2672.4,2672.3,3.74209]
[1739739845501,0.8269,2672.4,2672.2,3.74214]
[1739739846564,0.8269,2672.4,2672.3,3.74209]
[1739739846769,0.8269,2672.4,2672.2,3.74216]
[1739739848070,0.8269,2672.4,2672.3,3.74209]
[1739739848397,0.8269,2672.7,2672.6,3.74167]
[1739739849409,0.8269,2672.7,2672.5,3.74181]
[1739739850118,0.8269,2672.7,2672.6,3.74167]
[1739739850274,0.8269,2672.7,2672.4,3.74187]
[1739739850475,0.8269,2672.7,2672.3,4.490405]
[1739739850476,0.8269,2672.7,2672.5,3.74181]
[1739739850870,0.8269,2672.7,2672.5,7.48355]
[1739739851116,0.8269,2672.7,2672.5,3.74174]
[1739739851975,0.8269,2672.7,2672.5,7.48347]
[1739739852175,0.8269,2672.7,2672.5,3.74173]
[1739739853320,0.8269,2672.7,2672.6,3.74167]
[1739739855432,0.8269,2672.7,2672.5,3.74173]
[1739739856356,0.8269,2672.7,2672.3,4.490475]
[1739739856631,0.8269,2672.7,2672.4,3.74188]
[1739739857291,0.8269,2672.7,2672.2,3.7421]
[1739739857444,4.56843,2672.7,2672.2,4.790539]
[1739739857640,0.8269,2672.7,2672.3,3.74201]
[1739739859089,0.8269,2672.7,2672.5,3.7418]
[1739739859266,0.8269,2672.7,2672.5,3.74172]
[1739739859882,0.8269,2672.7,2672.6,3.74167]
[1739739860258,0.7542,2673.0,2672.6,3.74167]
[1739739860464,5.345723,2673.0,2672.5,3.74179]
[1739739860866,5.345723,2673.0,2672.4,3.74185]
[1739739861192,5.345723,2673.0,2672.4,7.4837]
[1739739861391,3.7413,2672.9,2672.4,3.74185]
[1739739861695,0.7664,2672.8,2672.4,3.74185]
[1739739862592,0.7664,2672.8,2672.5,3.74174]
[1739739864795,0.7664,2672.8,2672.6,3.74163]
[1739739864956,0.8066,2673.1,2672.4,3.74195]
[1739739865162,0.8066,2673.1,2672.8,7.48264]
[1739739865356,0.8066,2673.1,2672.8,3.74132]
[1739739865763,0.8066,2673.1,2672.8,3.7413]
[1739739865977,0.8066,2673.1,2672.8,7.48262]
[1739739866153,0.8066,2673.1,2672.8,3.7413]
[1739739866359,0.8066,2673.4,2673.1,3.74096]
[1739739866896,0.8066,2673.4,2672.9,7.48233]
[1739739867085,0.8066,2673.4,2673.0,3.74109]
[1739739867458,0.8066,2673.4,2673.1,3.74087]
[1739739867995,0.8066,2673.4,2673.2,3.74078]
[1739739868198,0.8066,2673.4,2673.1,3.74087]
[1739739868369,6.1466,2673.4,2673.3,3.74069]
[1739739868568,5.34,2673.4,2673.3,3.74069]
[1739739869114,5.34,2673.4,2673.2,3.6908]
[1739739870286,5.34,2673.4,2673.3,3.74069]
[1739739870593,0.8066,2673.8,2673.4,3.74047]
[1739739870793,0.8066,2673.8,2673.4,7.48094]
[1739739870997,0.8066,2673.8,2673.4,3.74047]
[1739739871495,0.8066,2673.8,2673.6,3.74025]
[1739739871697,5.34,2673.9,2673.6,3.74018]
[1739739872365,5.34,2673.9,2673.8,3.73999]
[1739739872558,6.1466,2674.1,2673.8,3.73989]
[1739739872795,5.34,2674.1,2673.8,3.73989]
[1739739872970,5.34,2674.1,2673.8,3.73988]
[1739739873611,5.34,2674.1,2673.8,3.7399]
[1739739873756,0.8066,2674.3,2673.9,3.73982]
[1739739873956,0.8066,2674.3,2674.1,3.73956]
[1739739874407,5.34,2674.4,2674.1,3.73956]
[1739739875097,5.34,2674.4,2673.9,7.4796]
[1739739875416,5.34,2674.4,2673.9,3.73978]
[1739739875629,5.34,2674.4,2674.1,3.73953]
[1739739877008,6.1466,2674.5,2674.1,3.73953]
[1739739877213,7.23731981,2674.5,2674.0,3.73971]
[1739739877525,3.73916,2674.4,2673.9,3.73975]
[1739739877686,10.97634981,2674.5,2673.9,3.73975]
[1739739877885,10.97634981,2674.5,2674.0,3.7397]
[1739739878278,3.73915,2674.4,2673.9,7.47952]
[1739739878730,3.73915,2674.4,2673.9,3.73975]
[1739739878929,3.73915,2674.4,2674.0,3.7397]
[1739739879084,1.09764698,2674.4,2674.0,3.7397]
[1739739879686,1.09764698,2674.4,2674.1,3.73946]
[1739739880330,1.09764698,2674.4,2673.9,3.73978]
[1739739880606,1.09764698,2674.4,2674.1,3.73951]
[1739739881019,1.09764698,2674.4,2674.1,7.47902]
[1739739881209,1.09764698,2674.4,2674.1,3.73951]
[1739739881712,1.09764698,2674.4,2674.1,3.73949]
[1739739883215,6.1466,2674.5,2674.1,3.73949]
[1739739884824,9.88568,2674.5,2674.0,3.7397]
[1739739885027,3.73916,2674.4,2674.0,3.7397]
[1739739885588,9.88568,2674.5,2674.0,3.7397]
[1739739885790,6.1466,2674.5,2673.8,0.0576]
[1739739886025,6.1466,2674.5,2673.8,3.73995]
[1739739886026,4.49442,2674.3,2673.8,3.73995]
[1739739886324,0.755,2674.3,2673.8,3.73995]
[1739739886529,0.755,2674.3,2673.9,3.7398]
[1739739888626,0.755,2674.3,2673.8,3.73995]
[1739739888800,9.83436,2674.3,2673.8,3.73995]
[1739739889140,11.2905609,2674.3,2673.8,7.47981]
[1739739889329,11.2905609,2674.3,2673.8,3.73988]
[1739739889790,11.2905609,2674.3,2673.8,7.47979]
[1739739889990,11.2905609,2674.3,2673.8,3.73988]
[1739739890193,3.73953,2674.2,2673.7,3.74013]
[1739739890403,4.86860309,2674.2,2673.6,3.74016]
[1739739890607,4.86860309,2674.2,2673.8,3.73999]
[1739739890845,1.12907309,2674.2,2673.8,3.73999]
[1739739891022,1.12907309,2674.2,2673.9,3.73984]
[1739739891223,1.12907309,2674.2,2673.6,3.74017]
[1739739891906,1.12907309,2674.2,2673.8,3.73998]
[1739739892216,4.86851309,2674.2,2673.8,3.73998]
[1739739892619,1.09635131,2674.1,2673.6,3.74017]
[1739739892810,0.755,2674.0,2673.7,3.74011]
[1739739893119,0.755,2674.0,2673.6,3.74016]
[1739739893315,0.755,2674.0,2673.6,7.48035]
[1739739893848,0.755,2674.0,2673.4,7.04333155]
[1739739894012,5.89909313,2673.9,2673.1,3.30289155]
[1739739894342,5.89909313,2673.9,2673.5,3.74039]
[1739739894527,9.63895313,2673.9,2673.4,3.74055]
[1739739895717,4.55569,2673.8,2673.3,3.74064]
[1739739895917,1.04547831,2673.7,2673.3,3.74064]
[1739739896123,1.04547831,2673.7,2673.3,3.74059]
[1739739897004,5.34,2673.6,2673.2,6.74083]
[1739739899954,0.8156,2673.5,2673.2,6.74083]
[1739739900142,0.8156,2673.5,2673.1,3.74086]
[1739739900348,0.8156,2673.5,2673.3,3.74068]
[1739739900770,6.1556,2673.5,2673.3,3.74068]
[1739739902145,5.34,2673.5,2673.4,3.74055]
[1739739902346,5.34,2673.5,2673.4,4.546273]
[1739739902669,5.34,2673.5,2673.4,3.79815]
[1739739902968,5.34,2673.5,2673.4,3.74055]
[1739739903575,6.1556,2673.5,2673.3,3.74068]
[1739739904433,6.1556,2673.5,2673.1,3.74086]
[1739739904633,0.989591,2673.4,2673.1,3.74086]
[1739739904841,5.34,2673.4,2673.1,3.74086]
[1739739905377,5.34,2673.4,2672.9,10.4823]
[1739739905673,5.34,2673.4,2673.0,3.74111]
[1739739906234,5.34,2673.4,2672.9,6.74114]
[1739739906693,5.34,2673.4,2673.0,3.74108]
[1739739906874,6.703636,2673.4,2673.0,3.74108]
[1739739907963,5.34,2673.4,2673.3,3.74069]
[1739739908778,5.34,2673.4,2673.3,6.74069]
[1739739909273,0.8156,2674.0,2673.8,3.73991]
[1739739909575,0.8156,2674.2,2673.9,3.73985]
[1739739909741,0.8156,2674.2,2674.0,3.73963]
[1739739910464,5.34,2674.3,2674.1,3.73957]
[1739739910672,5.34,2674.3,2674.1,3.73947]
[1739739911896,6.1294,2674.5,2674.3,3.73919]
[1739739912080,5.34,2674.5,2674.3,3.73919]
[1739739913016,0.7894,2674.7,2674.3,3.73919]
[1739739913177,0.7894,2674.7,2674.4,3.73904]
[1739739913377,6.1294,2674.9,2674.5,3.73897]
[1739739913580,7.142974,2674.9,2674.3,3.73919]
[1739739913817,7.142974,2674.9,2674.4,3.73911]
[1739739914716,10.881454,2674.9,2674.4,3.73911]
[1739739915081,10.881454,2674.9,2674.3,3.73925]
[1739739915276,10.881454,2674.9,2674.2,3.7394]
[1739739915643,10.881454,2674.9,2674.4,3.73915]
[1739739916478,7.142974,2674.9,2674.5,3.73899]
[1739739916878,10.881434,2674.9,2674.3,3.73917]
[1739739917914,10.881434,2674.9,2674.4,3.73907]
[1739739918217,7.142974,2674.9,2674.4,3.73915]
[1739739919243,7.142974,2674.9,2674.3,3.73917]
[1739739919387,3.73868,2674.8,2674.3,7.47839]
[1739739920134,7.142974,2674.9,2674.3,3.73917]
[1739739920413,7.142974,2674.9,2674.6,3.73886]
[1739739920640,6.1294,2674.9,2674.7,3.73865]
[1739739921246,3.73771533,2675.6,2675.0,3.73831]
[1739739921247,4.00563,2675.5,2675.0,3.73831]
[1739739921451,6.1294,2675.4,2675.0,3.73831]
[1739739921652,6.1294,2675.4,2674.9,3.73845]
[1739739921947,6.1294,2675.4,2675.0,3.73831]
[1739739922847,6.1294,2675.4,2674.9,3.73845]
[1739739923033,6.1294,2675.4,2675.0,3.73821]
[1739739923330,6.1294,2675.4,2675.1,3.73807]
[1739739923725,6.1294,2675.4,2675.0,4.485926]
[1739739923923,6.1294,2675.4,2674.7,7.04153155]
[1739739924123,6.1294,2675.4,2674.5,0.0576]
[1739739924421,0.7894,2675.0,2674.5,3.73896]
[1739739924622,3.73858,2674.9,2674.4,3.73915]
[1739739924937,4.50947,2674.8,2674.3,3.7392]
[1739739925114,0.7708,2674.8,2674.3,3.7392]
[1739739925302,0.03563326,2674.7,2674.3,3.73917]
[1739739925702,4.50946,2674.8,2674.3,3.73917]
[1739739925903,0.03562347,2674.6,2674.3,3.73917]
[1739739926098,0.7708,2674.8,2674.3,3.73917]
[1739739926099,0.03563326,2674.7,2674.3,3.73917]
[1739739926338,0.03561368,2674.5,2674.3,3.73917]
[1739739926559,4.50942,2674.8,2674.0,0.0576]
[1739739926705,0.7708,2674.3,2673.7,3.74003]
[1739739926902,6.1108,2674.3,2673.9,3.73977]
[1739739927214,0.0356194,2674.2,2673.9,3.73977]
[1739739927539,6.1108,2674.3,2673.9,3.73977]
[1739739927757,0.03560962,2674.1,2673.9,3.73977]
[1739739927903,6.1108,2674.3,2673.9,3.73977]
[1739739928103,0.0356194,2674.2,2673.9,3.73977]
[1739739928632,0.03560962,2674.1,2673.9,3.73977]
[1739739928951,6.1108,2674.3,2673.9,3.73977]
[1739739928952,5.34,2674.3,2674.2,3.73943]
[1739739929099,5.34,2674.3,2674.0,4.113687]
[1739739929304,5.34,2674.3,2674.0,3.73971]
[1739739929842,5.34,2674.3,2674.0,7.47934]
[1739739930342,5.34,2674.3,2674.1,3.73946]
[1739739930556,5.34,2674.4,2674.2,3.73935]
[1739739930908,5.34,2674.4,2674.0,3.73966]
[1739739931437,5.34,2674.4,2674.0,7.47927]
[1739739931645,5.34,2674.4,2674.1,3.73956]
[1739739932340,5.34,2674.4,2674.0,7.47925]
[1739739933001,5.34,2674.4,2673.9,3.73983]
[1739739933206,6.32499,2674.4,2673.9,3.73983]
[1739739933504,5.34,2674.4,2674.2,3.73941]
[1739739933709,5.34,2674.4,2674.2,3.73935]
[1739739934548,5.34,2674.4,2674.1,3.73949]
[1739739934732,5.34,2674.4,2674.3,3.73929]
[1739739935326,5.34,2674.4,2674.1,3.73947]
[1739739935709,5.34,2674.4,2674.2,3.73939]
[1739739935904,5.34,2674.4,2674.3,3.73929]
[1739739936353,5.34,2674.4,2674.3,4.49292]
[1739739937363,5.52152696,2674.4,2674.3,3.73929]
[1739739937525,6.29232696,2674.4,2674.2,3.73941]
[1739739938045,6.29232696,2674.4,2674.3,3.73929]
[1739739938444,6.29232696,2674.4,2674.2,7.47876]
[1739739938649,6.29232696,2674.4,2674.2,7.47868]
[1739739938846,6.29232696,2674.4,2674.2,3.73933]
[1739739939049,6.29232696,2674.4,2674.3,3.73929]
[1739739939343,6.29232696,2674.4,2674.1,3.7395]
[1739739940018,6.29232696,2674.4,2674.2,3.73934]
[1739739940223,6.1108,2674.4,2674.2,3.73943]
[1739739940419,0.18152264,2674.3,2674.2,3.73943]
[1739739942170,0.18152264,2674.3,2674.2,3.73943]
[1739739943016,0.18152264,2674.3,2674.2,4.493089]
[1739739944247,0.18152264,2674.3,2674.2,4.53047983]
[1739739944418,0.18152264,2674.3,2674.2,4.493089]
[1739739944923,0.18152264,2674.3,2674.2,4.550689]
[1739739945654,5.34,2674.7,2674.6,3.73887]
[1739739946811,5.34,2674.7,2674.5,3.73899]
[1739739946812,5.34,2674.7,2674.5,7.47794]
[1739739947991,5.34,2674.7,2674.5,3.73895]
[1739739948192,5.34,2674.7,2674.6,3.73887]
[1739739950497,5.34,2674.7,2674.5,3.73895]
[1739739951268,6.17,2674.8,2674.5,3.73895]
[1739739952291,6.17,2674.8,2674.5,7.47786]
[1739739952482,6.17,2674.8,2674.6,3.7388]
[1739739952673,6.17,2674.8,2674.7,3.73873]
[1739739952855,6.17,2674.8,2674.3,3.73925]
[1739739953060,6.17,2674.8,2674.4,3.73913]
[1739739953690,9.90861,2674.8,2674.3,3.73929]
[1739739954108,9.90861,2674.8,2674.3,7.47852]
[1739739954417,9.90861,2674.8,2674.4,3.73914]
[1739739954761,6.17,2674.8,2674.3,3.73923]
[1739739954963,6.17,2674.8,2674.4,3.73904]
[1739739955414,9.90863,2674.8,2674.3,3.73922]
[1739739955763,9.90863,2674.8,2674.3,3.73921]
[1739739956374,0.7587,2674.6,2674.3,3.73921]
[1739739956969,0.7587,2674.6,2674.2,3.73942]
[1739739957173,6.0987,2674.6,2674.1,3.73957]
[1739739957398,6.0987,2674.6,2674.0,0.0576]
[1739739957568,5.34,2674.6,2674.5,3.73901]
[1739739959313,5.5153575,2674.6,2674.5,3.73901]
[1739739959518,5.5153575,2674.6,2674.4,3.73914]
[1739739959713,5.4653575,2674.6,2674.4,3.73914]
[1739739960227,5.4653575,2674.6,2674.3,3.7392]
[1739739960376,5.4653575,2674.6,2674.4,3.73915]
[1739739960714,5.4653575,2674.6,2674.5,3.73901]
[1739739960908,5.4653575,2674.6,2674.3,3.7392]
[1739739961207,0.7587,2674.5,2674.2,3.73942]
[1739739961412,0.93405318,2674.5,2674.2,3.73942]
[1739739961614,0.93405318,2674.5,2674.3,3.73928]
[1739739961911,0.93405318,2674.5,2674.1,4.419247]
[1739739962117,0.93405318,2674.5,2674.1,8.158757]
[1739739962498,0.93405318,2674.5,2674.2,3.73942]
[1739739962824,0.93405318,2674.5,2674.1,4.419227]
[1739739962978,0.93405318,2674.5,2674.1,7.479]
[1739739963174,6.22405318,2674.5,2674.1,3.73949]
[1739739963407,6.22405318,2674.5,2673.8,3.24529155]
[1739739963408,6.22405318,2674.5,2674.4,3.73915]
[1739739964691,6.22405318,2674.5,2674.2,3.73936]
[1739739965016,6.22405318,2674.5,2674.4,3.73915]
[1739739966111,6.22405318,2674.5,2674.3,7.47848]
[1739739966707,6.22405318,2674.5,2674.4,3.73915]
[1739739967601,5.46535318,2674.5,2674.4,4.486986]
[1739739969119,0.17535318,2674.5,2674.4,4.486986]
[1739739969569,0.7529,2674.8,2674.6,3.73874]
[1739739969816,0.7529,2674.8,2674.5,3.73898]
[1739739970606,3.73874,2674.7,2674.3,3.73928]
[1739739971006,0.7529,2674.8,2674.4,3.73915]
[1739739971190,0.7529,2674.8,2673.9,6.79737]
[1739739971516,6.0784,2675.0,2674.7,3.73873]
[1739739971903,6.0784,2675.0,2674.8,3.73858]
[1739739972701,6.0784,2675.0,2674.7,3.73864]
[1739739973296,6.0784,2675.0,2674.8,3.73857]
[1739739974226,0.17510972,2674.9,2674.8,3.73857]
[1739739974941,0.17510972,2674.9,2674.8,4.486299]
[1739739975440,0.7884,2675.2,2675.0,3.7382]
[1739739975741,0.7884,2675.2,2674.9,3.73838]
[1739739975947,0.7884,2675.2,2675.1,3.73817]
[1739739976290,0.7884,2675.2,2675.0,3.7383]
[1739739976291,5.29,2675.4,2675.3,3.73789]
[1739739977715,0.7884,2675.7,2675.4,3.73765]
[1739739978452,0.7884,2675.7,2675.4,3.73763]
[1739739979098,0.7884,2675.7,2675.5,3.7375]
[1739739979644,0.7884,2675.7,2675.4,7.47531]
[1739739979847,0.7884,2675.7,2675.5,3.73754]
[1739739980558,0.7884,2675.7,2675.6,3.73747]
[1739739980703,6.0784,2675.9,2675.6,3.73747]
[1739739981127,6.0784,2675.9,2675.5,3.73754]
[1739739981331,6.0784,2675.9,2675.5,3.73753]
[1739739982113,6.0784,2675.9,2675.6,3.73747]
[1739739982314,6.0784,2675.9,2675.7,3.73722]
[1739739983552,6.0784,2675.9,2675.5,3.73757]
[1739739984197,6.0784,2675.9,2675.4,3.73767]
[1739739984198,6.0784,2675.9,2675.6,3.73745]
[1739739985445,6.0784,2675.9,2675.5,3.7376]
[1739739985644,6.0784,2675.9,2675.6,3.73746]
[1739739985949,6.0784,2675.9,2675.6,3.73739]
[1739739987149,6.0784,2675.9,2675.6,7.47479]
[1739739987301,6.0784,2675.9,2675.6,3.73739]
[1739739989362,0.16946314,2675.8,2675.6,3.73739]
[1739739989751,0.16946314,2675.8,2675.7,3.73733]
[1739739990230,0.16946314,2675.8,2675.4,4.44171016]
[1739739990430,0.16946314,2675.8,2675.5,3.73748]
[1739739990868,0.16946314,2675.8,2675.7,3.73733]
[1739739991877,5.29,2675.9,2675.7,3.73733]
[1739739991878,5.29,2675.9,2675.8,3.7372]
[1739739993888,5.29,2675.9,2675.7,4.490568]
[1739739993889,5.29,2675.9,2675.7,0.753238]
[1739739994035,5.29,2675.9,2675.6,3.73735]
[1739739994036,0.8103,2675.8,2675.6,3.73735]
[1739739994758,0.8103,2675.8,2675.5,3.7376]
[1739739996997,0.8103,2675.6,2675.2,3.73802]
[1739739998091,0.8103,2675.6,2675.1,3.73808]
[1739739998504,0.8103,2675.6,2675.2,3.73802]
[1739739998804,0.8103,2675.8,2675.3,3.30289155]
[1739739998943,5.29,2675.9,2675.8,3.7372]
[1739739999360,5.29,2675.9,2675.7,3.73733]
[1739739999361,6.1003,2675.9,2675.5,3.73752]
[1739739999600,6.1003,2675.9,2675.8,3.7372]
[1739740000414,6.1003,2675.9,2675.7,3.73732]
[1739740001016,6.1003,2675.9,2675.7,7.47458]
[1739740001225,6.1003,2675.9,2675.7,3.73726]
[1739740001226,5.29,2675.9,2675.7,3.73726]
[1739740001834,5.29,2675.9,2675.6,3.73747]
[1739740003576,5.29,2675.9,2675.8,3.7372]
[1739740004199,5.45326927,2675.9,2675.8,3.7372]
[1739740005511,5.45326927,2675.9,2675.8,4.484652]
[1739740006711,0.16326927,2675.9,2675.8,4.484652]
[1739740006913,0.7861,2676.4,2676.1,3.73669]
[1739740007288,0.7861,2676.6,2675.9,6.98235155]
[1739740007620,0.7861,2676.6,2676.2,3.73657]
[1739740007788,0.7861,2676.6,2676.2,4.483897]
[1739740008410,0.7861,2676.6,2676.3,3.73649]
[1739740008814,0.7861,2676.6,2676.3,3.73642]
[1739740009417,0.7861,2676.6,2676.3,7.47284]
[1739740009628,0.7861,2676.6,2676.3,3.73642]
[1739740009920,0.7861,2676.6,2676.1,7.47335]
[1739740010117,0.7861,2676.6,2676.2,3.73663]
[1739740010322,0.7861,2676.6,2676.1,3.73665]
[1739740010518,0.7861,2676.6,2676.3,3.73646]
[1739740010721,0.7861,2676.6,2676.1,3.73665]
[1739740010908,0.7861,2676.6,2676.2,4.110265]
[1739740011429,0.7861,2676.6,2676.3,3.73646]
[1739740011920,0.7861,2676.6,2676.2,4.110295]
[1739740012492,0.7861,2676.6,2676.3,3.73639]
[1739740013126,0.7861,2676.6,2676.2,4.110295]
[1739740013326,0.7861,2676.6,2676.3,0.4110295]
[1739740015337,3.73624,2676.5,2676.0,3.73684]
[1739740015632,0.762,2676.4,2676.0,3.73684]
[1739740016630,3.73652,2676.3,2675.8,0.747452]
[1739740017021,9.78837,2676.4,2675.9,3.73701]
[1739740018494,0.762,2676.3,2675.9,3.73701]
[1739740018935,4.49857,2676.3,2675.8,3.7371]
[1739740019432,0.15672593,2676.2,2675.8,3.7371]
[1739740019805,4.49857,2676.3,2675.8,3.7371]
[1739740020137,0.18782939,2676.1,2675.8,3.7371]
[1739740020731,0.15671731,2676.0,2675.7,3.73725]
[1739740020937,0.15671731,2676.0,2675.8,3.73713]
[1739740021137,0.15671731,2676.0,2675.9,3.73706]
[1739740025740,0.15671731,2676.0,2675.9,4.484483]
[1739740026035,5.29,2676.4,2676.3,3.7365]
[1739740026453,5.44670453,2676.4,2676.3,3.7365]
[1739740026753,5.44670453,2676.4,2676.2,3.73662]
[1739740027626,5.44670453,2676.4,2676.3,3.7365]
[1739740028026,5.44670453,2676.4,2676.2,3.73662]
[1739740028441,0.15670453,2676.4,2676.1,3.73669]
[1739740028642,3.73609,2676.6,2676.1,3.73669]
[1739740028924,0.15687763,2676.3,2676.1,3.73669]
[1739740029146,0.762,2676.5,2676.1,4.88907246]
[1739740029456,0.762,2676.5,2676.0,3.73682]
[1739740029457,0.15687332,2676.2,2676.0,3.73682]
[1739740029642,4.49829,2676.5,2676.0,3.73682]
[1739740029872,0.15688194,2676.4,2676.0,3.73682]
[1739740030034,0.15686901,2676.1,2676.0,3.79442]
[1739740030358,0.762,2676.5,2676.3,3.73643]
[1739740030532,0.762,2676.5,2676.0,3.73685]
[1739740031046,0.15708462,2676.4,2676.0,3.73685]
[1739740031419,0.7915,2676.3,2675.9,3.73695]
[1739740031757,0.157076,2676.2,2676.0,3.73684]
[1739740032054,0.157076,2676.2,2676.1,3.73678]
[1739740032253,0.7915,2676.6,2676.4,3.7363]
[1739740032557,0.15708893,2676.5,2676.4,3.7363]
[1739740032925,0.15708893,2676.5,2676.2,3.73653]
[1739740034054,0.15708893,2676.5,2676.0,3.73681]
[1739740034249,4.52788,2676.4,2676.0,3.73681]
[1739740034444,9.81788,2676.4,2676.0,3.73681]
[1739740034664,0.15708031,2676.3,2676.1,3.73676]
[1739740035324,0.15708031,2676.3,2676.2,3.73664]
[1739740036329,0.94858031,2676.3,2676.2,3.73664]
[1739740037336,0.94858031,2676.3,2675.9,3.0]
[1739740037536,0.94858031,2676.3,2676.0,3.73683]
[1739740038665,0.15708031,2676.3,2676.1,3.73676]
[1739740039366,0.15708031,2676.3,2676.2,3.73664]
[1739740039587,0.15708031,2676.3,2676.0,3.73681]
[1739740040237,0.15708031,2676.3,2675.8,3.73707]
[1739740040542,0.15708031,2676.3,2676.0,3.73691]
[1739740041333,0.15708031,2676.3,2676.2,3.73664]
[1739740041987,0.15708031,2676.3,2676.0,3.73691]
[1739740042134,0.15708031,2676.3,2676.0,7.47375]
[1739740042334,0.15708031,2676.3,2676.0,3.73684]
[1739740043348,0.15708031,2676.3,2676.0,7.47367]
[1739740043537,0.15708031,2676.3,2676.0,3.73683]
[1739740045113,0.15708031,2676.3,2676.0,7.47366]
[1739740045413,0.15708031,2676.3,2676.0,3.73683]
[1739740050223,0.15708031,2676.3,2675.8,3.73709]
[1739740050423,0.15708031,2676.3,2675.9,3.73704]
[1739740050616,0.15708031,2676.3,2675.9,3.73706]
[1739740051130,0.15708031,2676.3,2676.0,3.73685]
[1739740053298,0.8186,2676.1,2675.5,3.73754]
[1739740053630,6.25999685,2676.0,2675.1,3.79576]
[1739740053826,6.25999685,2676.0,2675.6,3.73747]
[1739740054907,6.44523187,2676.0,2675.7,3.73722]
[1739740055119,6.25999685,2676.0,2675.9,3.73706]
[1739740056127,5.44139685,2676.0,2675.8,3.7372]
[1739740056336,5.44139685,2676.0,2675.6,7.4748]
[1739740056502,0.8186,2675.9,2675.6,3.73739]
[1739740056833,0.15096905,2675.8,2675.6,3.73739]
[1739740057027,0.15096905,2675.8,2675.6,7.4748]
[1739740057230,0.15096905,2675.8,2675.7,3.73733]
[1739740058235,0.15096905,2675.8,2675.6,3.73739]
[1739740059441,0.15096905,2675.8,2675.7,3.73733]
[1739740060911,0.15096905,2675.8,2675.6,3.73739]
[1739740061312,0.15096905,2675.8,2675.7,3.73733]
[1739740068235,0.15096905,2675.8,2675.7,4.542402]
[1739740068431,5.29,2676.0,2675.7,0.805072]
[1739740068637,5.29,2676.0,2675.9,3.73706]
[1739740070060,6.0532,2676.4,2676.1,3.73673]
[1739740070245,6.0532,2676.4,2676.0,3.73691]
[1739740070438,7.05883,2676.4,2676.0,3.73691]
[1739740071042,7.05883,2676.4,2676.1,3.73668]
[1739740071336,6.0532,2676.4,2676.1,3.73668]
[1739740072660,6.0532,2676.4,2676.2,3.73659]
[1739740072966,6.0532,2676.4,2676.1,3.73668]
[1739740073167,6.0532,2676.4,2675.9,3.73697]
[1739740073457,6.0532,2676.4,2676.0,3.73691]
[1739740073661,7.432453,2676.4,2676.0,3.73691]
[1739740073863,7.432453,2676.4,2675.7,0.0576]
[1739740074039,6.0532,2676.4,2676.1,3.73669]
[1739740074653,6.0532,2676.4,2676.1,7.47339]
[1739740075128,6.0532,2676.4,2676.1,3.73669]
[1739740077866,6.0532,2676.4,2676.1,7.47335]
[1739740078163,6.0532,2676.4,2676.1,3.73666]
[1739740078345,6.0532,2676.4,2676.2,3.73662]
[1739740078736,6.0532,2676.4,2675.4,3.73775]
[1739740078737,0.7534,2676.2,2675.4,1.56865638]
[1739740078940,0.7534,2676.1,2675.7,3.73723]
[1739740079173,0.14057837,2676.0,2675.7,7.47448]
[1739740079543,0.14057837,2676.0,2675.7,3.73723]
[1739740079873,0.14057837,2676.0,2675.8,3.73711]
[1739740080259,0.14057837,2676.0,2675.9,3.73706]
[1739740080779,9.77978,2676.4,2675.9,3.73706]
[1739740080968,0.14049456,2676.3,2675.9,3.73706]
[1739740081479,3.87700456,2676.3,2675.9,3.73706]
[1739740083577,3.87700456,2676.3,2675.6,3.73739]
[1739740083779,4.49018,2676.1,2675.7,3.73726]
[1739740083992,4.63087162,2676.0,2675.5,3.73752]
[1739740084203,0.7534,2675.9,2675.5,3.73752]
[1739740084473,0.14050986,2675.8,2675.5,3.73752]
[1739740084884,0.14050986,2675.8,2675.4,3.73765]
[1739740085386,0.7534,2675.7,2675.4,3.73765]
[1739740085542,0.14050123,2675.6,2675.4,8.07820192]
[1739740085748,0.7534,2675.9,2675.7,3.73733]
[1739740085985,0.14036094,2675.8,2675.7,3.73726]
[1739740086780,5.29,2676.1,2676.0,3.73692]
[1739740086978,5.43037625,2676.1,2676.0,3.73692]
[1739740087176,0.14037625,2676.1,2676.0,3.73692]
[1739740087354,0.7534,2676.4,2676.2,3.73655]
[1739740087558,0.14049084,2676.3,2676.2,3.73655]